bitfinex-derivatives/quotes_BTCF0:USTF0_20241210
["timestamp","ask_amount","ask_price","bid_price","bid_amount"]
[1733830702065,0.413127,97608.0,97607.0,0.06026976]
[1733830705868,0.413127,97608.0,97607.0,0.00906276]
[1733830706761,0.413127,97608.0,97607.0,0.06026976]
[1733830708152,0.53510921,97608.0,97607.0,0.06026976]
[1733830708360,0.413127,97608.0,97607.0,0.06026976]
[1733830708657,0.413127,97608.0,97607.0,0.00906276]
[1733830709259,0.57603826,97608.0,97607.0,0.00906276]
[1733830709461,0.051217,97588.0,97587.0,0.033]
[1733830709661,0.412017,97588.0,97587.0,0.033]
[1733830709958,0.412137,97588.0,97587.0,0.033]
[1733830710968,0.412137,97588.0,97587.0,0.042]
[1733830710969,0.413137,97588.0,97587.0,0.042]
[1733830711358,0.50474908,97588.0,97587.0,0.042]
[1733830711665,0.45355192,97588.0,97587.0,0.042]
[1733830711863,0.31192,97588.0,97587.0,0.042]
[1733830712065,0.31292,97588.0,97587.0,0.049]
[1733830712262,0.40455192,97588.0,97587.0,0.049]
[1733830712662,0.31192,97588.0,97587.0,0.042]
[1733830712964,0.31192,97588.0,97587.0,0.046]
[1733830714364,0.00112,97588.0,97587.0,0.046]
[1733830716067,0.00112,97588.0,97587.0,0.013]
[1733830716267,0.09278833,97588.0,97587.0,0.013]
[1733830716472,0.00112,97588.0,97587.0,0.013]
[1733830717063,0.12330021,97588.0,97587.0,0.013]
[1733830718079,0.00112,97588.0,97587.0,0.013]
[1733830723272,0.12330021,97588.0,97587.0,0.013]
[1733830723474,0.12330021,97588.0,97561.0,0.04482799]
[1733830723475,0.03142,97588.0,97570.0,0.24515825]
[1733830723665,0.03142,97588.0,97569.0,0.24515825]
[1733830723666,0.3608,97576.0,97569.0,0.24515825]
[1733830723870,0.051346,97571.0,97569.0,0.24515825]
[1733830724071,0.00012,97570.0,97569.0,0.051227]
[1733830724376,0.00012,97570.0,97563.0,0.29638825]
[1733830724568,0.051229,97566.0,97564.0,0.09606279]
[1733830724768,0.051229,97566.0,97564.0,0.05123]
[1733830725269,0.001,97571.0,97558.0,0.24515825]
[1733830725270,0.3608,97565.0,97558.0,0.24515825]
[1733830725470,0.3608,97565.0,97554.0,0.29639325]
[1733830725471,0.051235,97555.0,97554.0,0.29639325]
[1733830725767,0.412035,97555.0,97554.0,0.09607059]
[1733830725973,0.412035,97555.0,97554.0,0.051235]
[1733830726169,0.3588,97555.0,97554.0,0.051235]
[1733830727467,0.3588,97555.0,97554.0,0.055235]
[1733830727868,0.3598,97555.0,97554.0,0.055235]
[1733830729866,0.411035,97555.0,97554.0,0.004]
[1733830730382,0.051238,97548.0,97547.0,1e-06]
[1733830730571,0.051239,97547.0,97512.0,0.4251]
[1733830730878,0.3608,97527.0,97520.0,0.10080872]
[1733830731079,0.12175659,97542.0,97521.0,0.36085592]
[1733830731080,0.3608,97536.0,97521.0,0.36085592]
[1733830731281,0.051245,97535.0,97530.0,0.051247]
[1733830731574,0.051245,97535.0,97531.0,0.0643]
[1733830732366,0.3608,97536.0,97531.0,0.0643]
[1733830732565,0.3608,97536.0,97535.0,0.051245]
[1733830736071,0.36092,97548.0,97535.0,0.051245]
[1733830736271,0.36092,97548.0,97546.0,0.051239]
[1733830736473,0.36092,97548.0,97547.0,6e-05]
[1733830736682,0.36092,97548.0,97547.0,0.03146]
[1733830737767,0.36592,97548.0,97547.0,0.03146]
[1733830738181,0.36892,97548.0,97547.0,6e-05]
[1733830741275,0.420158,97548.0,97547.0,6e-05]
[1733830743574,0.420158,97548.0,97547.0,0.051299]
[1733830744584,0.36892,97548.0,97547.0,0.051299]
[1733830745583,0.00812,97548.0,97547.0,0.051299]
[1733830745786,0.3608,97566.0,97547.0,0.37107689]
[1733830746084,0.09131744,97569.0,97568.0,0.051228]
[1733830746283,0.09131744,97569.0,97565.0,6e-05]
[1733830746284,0.3608,97578.0,97565.0,6e-05]
[1733830746590,0.412023,97578.0,97577.0,0.051223]
[1733830747290,0.412023,97578.0,97577.0,0.051283]
[1733830748977,0.3608,97578.0,97577.0,0.051283]
[1733830750577,0.3608,97578.0,97577.0,0.052283]
[1733830751288,0.3608,97578.0,97577.0,0.051283]
[1733830751490,0.3608,97578.0,97577.0,0.052283]
[1733830751991,0.412023,97578.0,97577.0,0.052283]
[1733830753789,0.412023,97578.0,97577.0,0.05269023]
[1733830753989,0.412023,97578.0,97577.0,0.00146723]
[1733830754383,0.412023,97578.0,97577.0,0.00346723]
[1733830756599,0.413023,97578.0,97577.0,0.00246723]
[1733830757390,0.413023,97578.0,97577.0,0.00146723]
[1733830757595,0.414023,97578.0,97577.0,0.00146723]
[1733830760289,0.414023,97578.0,97577.0,0.05269023]
[1733830760501,0.412023,97578.0,97577.0,0.05269023]
[1733830761992,0.412023,97578.0,97577.0,0.05409668]
[1733830762198,0.412023,97578.0,97577.0,0.05509668]
[1733830762396,0.3608,97578.0,97577.0,0.05509668]
[1733830762992,0.3608,97578.0,97577.0,0.05409668]
[1733830763893,0.3608,97578.0,97577.0,0.05509668]
[1733830765307,0.3608,97578.0,97577.0,0.05409668]
[1733830765606,0.3608,97578.0,97577.0,0.05509668]
[1733830768505,0.3608,97578.0,97577.0,0.05409668]
[1733830768704,0.3608,97578.0,97577.0,0.05509668]
[1733830770214,0.412023,97578.0,97577.0,0.05509668]
[1733830770708,0.412023,97578.0,97577.0,0.05650313]
[1733830773012,0.412023,97578.0,97577.0,0.05550313]
[1733830773203,0.412023,97578.0,97577.0,0.05650313]
[1733830775208,0.50334044,97578.0,97577.0,0.05650313]
[1733830775513,0.412023,97578.0,97577.0,0.10133243]
[1733830776015,0.3608,97578.0,97577.0,0.10133243]
[1733830776912,0.3608,97578.0,97577.0,0.05650313]
[1733830778902,0.3608,97578.0,97577.0,0.05772748]
[1733830779724,0.12175659,97579.0,97578.0,0.051223]
[1733830780011,0.12175659,97579.0,97578.0,0.05666748]
[1733830780216,0.12175659,97579.0,97578.0,0.05672748]
[1733830782009,0.12175659,97579.0,97578.0,0.05772748]
[1733830784810,0.12175659,97579.0,97578.0,0.00650448]
[1733830785011,0.051222,97579.0,97578.0,0.00650448]
[1733830785425,0.20394727,97579.0,97578.0,0.00650448]
[1733830785608,0.20428699,97579.0,97578.0,0.00650448]
[1733830786010,0.10103025,97579.0,97578.0,0.00550448]
[1733830786212,0.10103025,97579.0,97578.0,0.00650448]
[1733830787024,0.5953922,97579.0,97578.0,0.00650448]
[1733830787213,0.46183025,97579.0,97578.0,0.00650448]
[1733830788124,0.46183025,97579.0,97578.0,0.00550448]
[1733830789121,0.46383025,97579.0,97578.0,0.00550448]
[1733830789924,0.4638321,97579.0,97578.0,0.00550448]
[1733830792620,0.64729589,97579.0,97578.0,0.00550448]
[1733830792815,0.4638321,97579.0,97578.0,0.00550448]
[1733830793138,0.64729589,97579.0,97578.0,0.00550448]
[1733830793521,0.4638321,97579.0,97578.0,0.00550448]
[1733830796624,0.414022,97579.0,97578.0,0.00550448]
[1733830796821,0.46383461,97579.0,97578.0,0.00550448]
[1733830797423,0.46383431,97579.0,97578.0,0.00550448]
[1733830797618,0.414022,97579.0,97578.0,0.00550448]
[1733830802836,0.414022,97579.0,97578.0,0.05672748]
[1733830803127,0.53628633,97579.0,97578.0,0.05672748]
[1733830803327,0.50572765,97579.0,97578.0,0.05672748]
[1733830803529,0.414022,97579.0,97578.0,0.05672748]
[1733830805327,0.3628,97579.0,97578.0,0.05672748]
[1733830805531,0.09170565,97588.0,97578.0,0.05038976]
[1733830805723,7.511e-05,97589.0,97578.0,0.39682422]
[1733830805927,7.511e-05,97589.0,97588.0,0.051217]
[1733830806125,7.511e-05,97589.0,97588.0,0.05666148]
[1733830806736,7.511e-05,97589.0,97588.0,0.08942148]
[1733830807127,0.00607511,97589.0,97588.0,0.08942148]
[1733830807729,0.00907511,97589.0,97588.0,0.08942148]
[1733830809530,0.00907511,97589.0,97588.0,0.09957128]
[1733830809735,0.36987511,97589.0,97588.0,0.09957128]
[1733830810123,0.36987511,97589.0,97588.0,0.14439662]
[1733830810343,0.36987511,97589.0,97588.0,0.09957128]
[1733830813531,0.42109211,97589.0,97588.0,0.03820448]
[1733830814839,0.36987511,97589.0,97588.0,0.08942148]
[1733830821149,0.00907511,97589.0,97588.0,0.08942148]
[1733830824960,0.00907511,97589.0,97588.0,0.335017]
[1733830825640,0.00907511,97589.0,97588.0,0.09262287]
[1733830827543,0.00907511,97589.0,97588.0,0.08942148]
[1733830827852,0.00907511,97589.0,97588.0,0.0926229]
[1733830830947,0.00907511,97589.0,97588.0,0.09262301]
[1733830831157,0.06029211,97589.0,97588.0,0.09262301]
[1733830832046,0.00907511,97589.0,97588.0,0.09262301]
[1733830832553,0.00907511,97589.0,97588.0,0.13744456]
[1733830834052,0.00907511,97589.0,97588.0,0.13424303]
[1733830834252,0.00907511,97589.0,97588.0,0.71077057]
[1733830835356,0.00907511,97589.0,97588.0,0.40483829]
[1733830837760,0.00907511,97589.0,97588.0,0.40163676]
[1733830837960,0.00907511,97589.0,97588.0,0.40483829]
[1733830840966,0.00907511,97589.0,97588.0,0.40517135]
[1733830844363,0.00907511,97589.0,97588.0,0.40517136]
[1733830848374,0.00907511,97589.0,97588.0,0.77320315]
[1733830848574,0.00907511,97589.0,97588.0,0.40517136]
[1733830850775,0.00907511,97589.0,97588.0,0.4051713]
[1733830857174,0.00907511,97589.0,97588.0,0.40197001]
[1733830857474,0.00907511,97589.0,97588.0,0.40517135]
[1733830858269,0.00907511,97589.0,97588.0,0.37247135]
[1733830858680,0.00907511,97589.0,97588.0,0.7409654]
[1733830859476,0.06029211,97589.0,97588.0,0.32125435]
[1733830859777,0.00907511,97589.0,97588.0,0.3276498]
[1733830860878,0.00907511,97589.0,97588.0,0.37247118]
[1733830862086,0.00907511,97589.0,97588.0,0.3276498]
[1733830862684,0.00907511,97589.0,97588.0,0.32764993]
[1733830863282,0.00907511,97589.0,97588.0,0.37247011]
[1733830863480,0.00907511,97589.0,97588.0,0.32764993]
[1733830864488,0.00907511,97589.0,97588.0,0.37246997]
[1733830864983,0.00907511,97589.0,97588.0,0.32764993]
[1733830865190,0.00907511,97589.0,97588.0,0.32758993]
[1733830866283,0.00907511,97589.0,97588.0,0.37240996]
[1733830867486,0.00907511,97589.0,97588.0,0.74090401]
[1733830867684,0.00907511,97589.0,97588.0,0.37240996]
[1733830867879,0.00907511,97589.0,97588.0,0.74250794]
[1733830868285,0.00907511,97589.0,97588.0,0.37393754]
[1733830868883,0.00907511,97589.0,97588.0,0.74251747]
[1733830871492,0.00907511,97589.0,97588.0,0.74251743]
[1733830871989,0.00907511,97589.0,97588.0,0.3739375]
[1733830875993,0.00907511,97589.0,97588.0,0.37393752]
[1733830876493,0.00907511,97589.0,97588.0,0.37073607]
[1733830876691,0.00907511,97589.0,97588.0,0.37393752]
[1733830881292,0.00907511,97589.0,97588.0,0.10468296]
[1733830881592,0.00907511,97589.0,97588.0,0.37733362]
[1733830881900,0.00907511,97589.0,97588.0,0.37413217]
[1733830883095,0.00907511,97589.0,97588.0,0.37435979]
[1733830883488,0.00907511,97589.0,97588.0,0.32314279]
[1733830884098,0.51279776,97589.0,97588.0,0.32314279]
[1733830884285,0.42109211,97589.0,97584.0,0.24578046]
[1733830884486,0.42109211,97589.0,97584.0,0.0844667]
[1733830884487,0.412019,97585.0,97584.0,0.0844667]
[1733830884692,0.412019,97585.0,97582.0,0.24578046]
[1733830884693,0.05122,97583.0,97581.0,0.24578046]
[1733830884889,0.05122,97583.0,97563.0,0.05123]
[1733830884890,0.05122,97583.0,97582.0,0.00320239]
[1733830885091,0.10102842,97583.0,97582.0,0.00320239]
[1733830885394,0.05122,97583.0,97582.0,0.00320239]
[1733830885693,0.51440487,97585.0,97582.0,0.00320239]
[1733830885892,0.051222,97579.0,97569.0,0.24578046]
[1733830886088,0.051222,97579.0,97578.0,0.00325831]
[1733830886784,0.12240247,97580.0,97578.0,0.00325831]
[1733830886989,0.051221,97581.0,97579.0,0.05442439]
[1733830887193,0.051221,97581.0,97580.0,0.00320239]
[1733830888995,0.051221,97581.0,97580.0,0.00320206]
[1733830889294,0.17554801,97581.0,97580.0,0.00434004]
[1733830889496,0.053221,97581.0,97580.0,0.00434004]
[1733830889688,0.054221,97581.0,97580.0,0.00434004]
[1733830889893,0.17654077,97581.0,97580.0,0.00434004]
[1733830890295,0.051222,97579.0,97578.0,5.592e-05]
[1733830890692,0.051342,97579.0,97578.0,5.592e-05]
[1733830890891,0.412142,97579.0,97578.0,5.592e-05]
[1733830891097,0.53446177,97579.0,97578.0,5.592e-05]
[1733830891298,0.39122,97579.0,97557.0,0.0306]
[1733830891596,0.051233,97558.0,97557.0,0.0306]
[1733830892099,0.051353,97558.0,97557.0,0.0306]
[1733830892802,0.051353,97558.0,97557.0,0.0346]
[1733830893299,0.051353,97558.0,97557.0,0.004]
[1733830893500,0.051353,97558.0,97547.0,0.06139535]
[1733830893796,0.051358,97548.0,97547.0,0.06139535]
[1733830894402,0.00012,97548.0,97547.0,0.06139535]
[1733830894998,0.051358,97548.0,97547.0,0.06139535]
[1733830895297,0.051358,97548.0,97541.0,0.051242]
[1733830895298,0.051239,97547.0,97541.0,0.051242]
[1733830895498,0.051242,97542.0,97541.0,0.051242]
[1733830895698,0.051362,97542.0,97541.0,0.051242]
[1733830895899,0.051362,97542.0,97532.0,0.0329]
[1733830895900,0.051244,97537.0,97536.0,0.051245]
[1733830896297,0.00012,97537.0,97532.0,0.0634]
[1733830896495,0.051246,97533.0,97532.0,0.0634]
[1733830896695,0.051366,97533.0,97532.0,0.0634]
[1733830897311,0.00012,97533.0,97531.0,0.01026886]
[1733830897492,0.00012,97533.0,97527.0,0.36144]
[1733830897493,0.051249,97528.0,97527.0,0.3608]
[1733830898099,0.051249,97528.0,97527.0,0.412049]
[1733830898506,0.051249,97528.0,97527.0,0.3608]
[1733830898809,0.051369,97528.0,97527.0,0.3608]
[1733830899007,0.052369,97528.0,97527.0,0.3628]
[1733830899304,0.052369,97528.0,97527.0,0.002]
[1733830901006,0.052369,97528.0,97527.0,0.00313675]
[1733830902213,0.052369,97528.0,97527.0,0.00336401]
[1733830902504,0.00124828,97528.0,97512.0,0.0328]
[1733830902703,0.051257,97513.0,97512.0,0.0328]
[1733830902902,0.051377,97513.0,97512.0,0.0328]
[1733830904911,0.051377,97513.0,97507.0,0.05126]
[1733830904912,0.051259,97508.0,97507.0,0.05126]
[1733830905208,0.051262,97503.0,97502.0,0.0308]
[1733830905801,0.051382,97503.0,97502.0,0.0308]
[1733830906002,0.051263,97501.0,97500.0,0.1]
[1733830906208,0.412063,97501.0,97500.0,0.1]
[1733830906806,0.6608,97501.0,97473.0,0.3608]
[1733830907011,0.41207,97488.0,97479.0,0.051274]
[1733830907205,0.41219,97488.0,97480.0,0.051274]
[1733830908312,0.051275,97478.0,97477.0,0.0323]
[1733830908511,0.412075,97478.0,97477.0,0.0323]
[1733830909301,0.412195,97478.0,97477.0,0.0323]
[1733830909713,0.412195,97478.0,97477.0,0.0363]
[1733830909911,0.413195,97478.0,97477.0,0.0363]
[1733830912506,0.66192,97478.0,97460.0,0.01004563]
[1733830912709,0.3608,97466.0,97461.0,0.0304]
[1733830913013,0.3608,97466.0,97461.0,0.081684]
[1733830913228,0.051282,97465.0,97464.0,0.051282]
[1733830913813,0.3608,97466.0,97464.0,0.051282]
[1733830914017,0.3608,97466.0,97465.0,0.00113624]
[1733830914018,0.3618,97466.0,97465.0,0.00113624]
[1733830914207,0.3618,97466.0,97465.0,0.00119624]
[1733830914804,0.3618,97466.0,97465.0,0.00142348]
[1733830915211,0.3618,97466.0,97465.0,0.00342348]
[1733830916117,0.3608,97466.0,97465.0,0.00342348]
[1733830916521,0.3618,97466.0,97465.0,0.00342348]
[1733830917114,0.413082,97466.0,97465.0,0.00342348]
[1733830920228,0.3618,97466.0,97465.0,0.00342348]
[1733830920420,0.3618,97466.0,97465.0,0.05493261]
[1733830921220,0.3618,97466.0,97465.0,0.05515974]
[1733830921421,0.3118,97466.0,97465.0,0.05515974]
[1733830921813,0.001,97466.0,97465.0,0.05515974]
[1733830922116,0.3608,97478.0,97477.0,0.051276]
[1733830922317,0.3608,97478.0,97477.0,0.05309374]
[1733830922523,0.38170546,97489.0,97477.0,0.05309374]
[1733830922821,0.3608,97489.0,97487.0,0.05127]
[1733830923012,0.3608,97489.0,97488.0,0.03046]
[1733830923213,0.412069,97489.0,97488.0,0.03046]
[1733830924125,0.412069,97489.0,97488.0,0.03273192]
[1733830924417,0.3658,97489.0,97488.0,0.08400192]
[1733830924619,0.3688,97489.0,97488.0,0.08400192]
[1733830925418,0.420069,97489.0,97488.0,0.03273192]
[1733830926716,0.420069,97489.0,97488.0,0.08422861]
[1733830927918,0.420069,97489.0,97488.0,0.0844553]
[1733830928119,0.3688,97489.0,97488.0,0.0844553]
[1733830929419,0.420069,97489.0,97488.0,0.0844553]
[1733830931219,0.3688,97489.0,97488.0,0.0844553]
[1733830931422,0.3188,97489.0,97488.0,0.0844553]
[1733830931622,0.008,97489.0,97488.0,0.4452553]
[1733830931930,0.3608,97497.0,97496.0,0.051266]
[1733830932123,0.05126,97507.0,97496.0,0.051266]
[1733830932425,0.3608,97510.0,97506.0,6e-05]
[1733830932723,0.3608,97510.0,97509.0,0.051319]
[1733830933120,0.3608,97510.0,97509.0,6e-05]
[1733830933428,0.412058,97510.0,97509.0,6e-05]
[1733830933725,0.50374315,97510.0,97509.0,6e-05]
[1733830933930,0.421058,97510.0,97509.0,6e-05]
[1733830934124,0.421058,97510.0,97509.0,0.0027853]
[1733830934426,0.51274315,97510.0,97509.0,0.0030122]
[1733830934625,0.428058,97510.0,97509.0,0.0554981]
[1733830936032,0.428058,97510.0,97509.0,0.05870259]
[1733830936415,0.428058,97510.0,97509.0,0.05572498]
[1733830936614,0.3768,97510.0,97509.0,0.05892947]
[1733830937025,0.3768,97510.0,97509.0,0.05915635]
[1733830938133,0.3768,97510.0,97509.0,0.05595186]
[1733830938523,0.3768,97510.0,97509.0,0.052319]
[1733830938835,0.3768,97510.0,97509.0,0.05617874]
[1733830939130,0.3768,97510.0,97509.0,0.05961008]
[1733830939830,0.428058,97510.0,97509.0,0.05961008]
[1733830940027,0.3768,97510.0,97509.0,0.05961008]
[1733830940722,0.3768,97510.0,97509.0,0.05965645]
[1733830942127,0.016,97510.0,97509.0,0.05965645]
[1733830942321,0.09168515,97527.0,97526.0,0.05125]
[1733830942523,0.36144829,97528.0,97527.0,0.051249]
[1733830942732,0.37099745,97528.0,97527.0,0.05445346]
[1733830942933,0.37099745,97528.0,97527.0,0.05451346]
[1733830943253,0.37099745,97528.0,97527.0,0.05864597]
[1733830943254,0.36092828,97528.0,97527.0,0.05864597]
[1733830943431,0.36092828,97528.0,97527.0,0.06908406]
[1733830943728,0.36092828,97528.0,97527.0,0.05864597]
[1733830943729,0.36992828,97528.0,97527.0,0.05864597]
[1733830944937,0.37692828,97528.0,97527.0,0.05964597]
[1733830945526,0.36792828,97528.0,97527.0,0.05964597]
[1733830945726,0.36792828,97528.0,97527.0,0.06064597]
[1733830945727,0.37492828,97528.0,97527.0,0.06064597]
[1733830946131,0.37492828,97528.0,97527.0,0.06064563]
[1733830946527,0.37492828,97528.0,97527.0,0.06087247]
[1733830946935,0.42617728,97528.0,97527.0,0.06087247]
[1733830947228,0.42617728,97528.0,97527.0,0.00641983]
[1733830947629,0.37492828,97528.0,97527.0,0.05789567]
[1733830949039,0.37492828,97528.0,97527.0,0.05812247]
[1733830950225,0.37492828,97528.0,97527.0,0.053309]
[1733830950429,0.37492828,97528.0,97527.0,0.05834924]
[1733830951527,0.37492828,97528.0,97527.0,0.05857601]
[1733830952036,0.37492828,97528.0,97527.0,0.06177966]
[1733830952246,0.01412828,97528.0,97527.0,0.06177966]
[1733830952534,0.01412828,97528.0,97527.0,0.10662919]
[1733830952735,0.01412828,97528.0,97527.0,0.10685573]
[1733830953327,0.01412828,97528.0,97527.0,0.0620063]
[1733830953542,0.01412828,97528.0,97527.0,0.0107573]
[1733830953742,0.06537728,97528.0,97527.0,0.0107573]
[1733830953943,0.06537728,97528.0,97527.0,0.0108042]
[1733830954133,0.06537728,97528.0,97527.0,0.01080433]
[1733830960144,0.06537728,97528.0,97527.0,0.06205333]
[1733830961949,0.01412828,97528.0,97527.0,0.06205333]
[1733830963252,0.00712828,97528.0,97527.0,0.06105333]
[1733830963446,0.01512828,97528.0,97527.0,0.06205333]
[1733830963952,0.01512828,97528.0,97527.0,0.10690302]
[1733830964344,0.00812828,97528.0,97527.0,0.10590302]
[1733830964540,0.01212828,97528.0,97527.0,0.10590302]
[1733830966949,0.01212828,97528.0,97527.0,0.41311784]
[1733830967141,0.01212828,97528.0,97527.0,0.37740068]
[1733830967543,0.01212828,97528.0,97527.0,0.10590302]
[1733830967748,0.00812828,97528.0,97527.0,0.10590302]
[1733830967954,0.00012828,97528.0,97527.0,0.10690302]
[1733830968155,0.00012828,97528.0,97527.0,0.41346532]
[1733830968361,0.00012828,97528.0,97527.0,0.10690302]
[1733830969052,0.00012828,97528.0,97527.0,0.10690277]
[1733830969256,0.00012828,97528.0,97527.0,0.37844782]
[1733830969463,0.00012828,97528.0,97527.0,0.36221607]
[1733830969647,0.05137728,97528.0,97527.0,0.05665377]
[1733830970053,0.05137728,97528.0,97527.0,0.30202213]
[1733830970254,0.05137728,97528.0,97527.0,0.05665377]
[1733830971060,0.05137728,97528.0,97527.0,0.30211527]
[1733830971252,0.05137728,97528.0,97527.0,0.05665377]
[1733830971755,0.05137728,97528.0,97527.0,0.01180444]
[1733830973362,0.17362415,97528.0,97527.0,0.01180444]
[1733830973560,0.05137728,97528.0,97527.0,0.01180444]
[1733830976557,0.14329981,97528.0,97527.0,0.01180444]
[1733830976759,0.05137728,97528.0,97527.0,0.01180444]
[1733830976951,0.17362415,97528.0,97527.0,0.01180444]
[1733830977150,0.05137728,97528.0,97527.0,0.01180444]
[1733830979358,0.05137728,97528.0,97527.0,0.01080444]
[1733830979561,0.05337728,97528.0,97527.0,0.00880444]
[1733830980559,0.1748841,97528.0,97527.0,0.00880444]
[1733830980760,0.1748841,97528.0,97527.0,0.00903129]
[1733830980761,0.1758841,97528.0,97527.0,0.00903129]
[1733830981059,0.1758841,97528.0,97527.0,0.00903159]
[1733830981452,0.05337728,97528.0,97527.0,0.00903159]
[1733830981665,0.17587123,97528.0,97527.0,0.00903159]
[1733830981960,0.17587123,97528.0,97527.0,0.00925844]
[1733830982566,0.17487123,97528.0,97527.0,0.00925844]
[1733830982863,0.17587123,97528.0,97527.0,0.00925844]
[1733830983062,0.17587123,97528.0,97527.0,0.00326406]
[1733830983256,0.05337728,97528.0,97527.0,0.00948529]
[1733830983864,0.05337728,97528.0,97527.0,0.00971218]
[1733830985461,0.05337728,97528.0,97527.0,0.0032641]
[1733830985765,0.05337728,97528.0,97527.0,0.00993903]
[1733830986170,0.05337728,97528.0,97527.0,0.01016588]
[1733830987260,0.05337728,97528.0,97527.0,0.01016596]
[1733830987863,0.05337728,97528.0,97527.0,0.01021335]
[1733830990558,0.05337728,97528.0,97527.0,0.00700917]
[1733830990762,0.05337728,97528.0,97527.0,0.01021335]
[1733830993862,0.05337728,97528.0,97527.0,0.01044036]
[1733830995059,0.05337728,97528.0,97527.0,0.00326418]
[1733830995257,0.05337728,97528.0,97527.0,0.01162199]
[1733830996467,0.17578959,97528.0,97527.0,0.01162199]
[1733830997164,0.05337728,97528.0,97527.0,0.01162199]
[1733830997372,0.05337728,97528.0,97527.0,0.01162196]
[1733830998270,0.05337728,97528.0,97527.0,0.00841781]
[1733831000173,0.20646214,97528.0,97527.0,0.00841781]
[1733831000373,0.05337728,97528.0,97527.0,8.1e-07]
[1733831000578,0.10321339,97528.0,97515.0,0.24573809]
[1733831000774,0.10321339,97528.0,97508.0,0.24573809]
[1733831000775,0.412055,97516.0,97508.0,0.24573809]
[1733831000968,0.412059,97509.0,97502.0,0.27893809]
[1733831001172,0.3608,97506.0,97502.0,0.27893809]
[1733831001471,0.051262,97503.0,97502.0,0.27893809]
[1733831001778,0.3608,97506.0,97505.0,0.051261]
[1733831002073,0.41206,97506.0,97505.0,0.09619092]
[1733831002475,0.41206,97506.0,97505.0,0.04492992]
[1733831002979,0.41206,97506.0,97505.0,0.04892992]
[1733831003167,0.41206,97506.0,97505.0,0.00406]
[1733831003371,0.41306,97506.0,97505.0,0.01306]
[1733831003575,0.535525,97506.0,97505.0,0.01306]
[1733831003883,0.534525,97506.0,97505.0,0.00606]
[1733831004077,0.41206,97506.0,97505.0,0.00606]
[1733831004279,0.534525,97506.0,97505.0,0.00606]
[1733831004577,0.41206,97506.0,97505.0,0.00606]
[1733831005875,0.41206,97506.0,97505.0,0.00206]
[1733831006776,0.41206,97506.0,97505.0,0.18625634]
[1733831007175,0.41206,97506.0,97505.0,0.00206]
[1733831007883,0.77286,97506.0,97505.0,0.00206]
[1733831009071,0.89523367,97506.0,97505.0,0.00206]
[1733831009272,0.77286,97506.0,97505.0,0.00206]
[1733831009882,0.77286,97506.0,97505.0,0.053321]
[1733831010070,0.86463534,97506.0,97505.0,0.053321]
[1733831010475,0.77286,97506.0,97505.0,0.05652566]
[1733831010872,0.41206,97506.0,97505.0,0.05652566]
[1733831012272,0.50383843,97506.0,97505.0,0.05652566]
[1733831012474,0.41206,97506.0,97505.0,0.05652566]
[1733831014274,0.50383843,97506.0,97505.0,0.05652566]
[1733831014591,0.41206,97506.0,97505.0,0.053321]
[1733831014784,0.50383843,97506.0,97505.0,0.053321]
[1733831014983,0.41206,97506.0,97505.0,0.053321]
[1733831015586,0.41206,97506.0,97505.0,0.23745065]
[1733831015888,0.41206,97506.0,97505.0,0.23744932]
[1733831016189,0.41206,97506.0,97505.0,0.053321]
[1733831017195,0.41206,97506.0,97505.0,0.23745268]
[1733831017383,0.41206,97506.0,97505.0,0.053321]
[1733831019179,0.41206,97506.0,97505.0,0.23747651]
[1733831019384,0.41206,97506.0,97505.0,0.053321]
[1733831021591,0.45257843,97506.0,97505.0,0.05652551]
[1733831022092,0.50383843,97506.0,97505.0,0.05652551]
[1733831023193,0.41206,97506.0,97505.0,0.05652551]
[1733831023786,0.41206,97506.0,97505.0,0.3022636]
[1733831023787,0.50390921,97506.0,97505.0,0.3022636]
[1733831023982,0.50390921,97506.0,97505.0,0.00526451]
[1733831024187,0.41206,97506.0,97505.0,0.2510026]
[1733831024389,0.41206,97506.0,97505.0,0.00526451]
[1733831024593,0.41206,97506.0,97505.0,0.05652551]
[1733831025191,0.41206,97506.0,97505.0,0.3022636]
[1733831025393,0.41206,97506.0,97505.0,0.05652551]
[1733831025394,0.3608,97506.0,97505.0,0.05652551]
[1733831025599,0.3608,97506.0,97505.0,0.05652552]
[1733831026398,0.09187903,97507.0,97505.0,0.41732552]
[1733831026593,0.09187903,97512.0,97506.0,0.00320452]
[1733831026788,0.09187903,97517.0,97515.0,0.051256]
[1733831026988,0.09187903,97522.0,97521.0,0.051253]
[1733831027185,0.3608,97523.0,97522.0,0.051252]
[1733831027385,0.3608,97523.0,97522.0,0.09931124]
[1733831027591,0.3608,97523.0,97522.0,0.09937124]
[1733831027791,0.3608,97523.0,97522.0,0.34501062]
[1733831028195,0.3608,97523.0,97522.0,0.09937124]
[1733831028394,0.3608,97523.0,97522.0,0.34501062]
[1733831028705,0.3608,97523.0,97522.0,0.3418061]
[1733831028890,0.3608,97523.0,97522.0,0.34500996]
[1733831029088,0.3608,97523.0,97522.0,0.09937058]
[1733831029294,0.3608,97523.0,97522.0,0.10037058]
[1733831029295,0.3698,97523.0,97522.0,0.10037058]
[1733831031296,0.3698,97523.0,97522.0,0.11072533]
[1733831031599,0.009,97523.0,97522.0,0.06587061]
[1733831031797,0.009,97523.0,97522.0,0.11072456]
[1733831032096,0.00012828,97528.0,97527.0,0.051249]
[1733831032297,0.00012828,97528.0,97527.0,0.09930681]
[1733831032491,0.00012828,97528.0,97527.0,0.09936681]
[1733831033196,0.00412828,97528.0,97527.0,0.09936681]
[1733831033399,0.01212828,97528.0,97527.0,0.10036681]
[1733831033600,0.01212828,97528.0,97527.0,0.09716295]
[1733831034706,0.01212828,97528.0,97527.0,0.34247343]
[1733831035095,0.01212828,97528.0,97527.0,0.29761948]
[1733831035296,0.01212828,97528.0,97527.0,0.052309]
[1733831035992,0.06337728,97528.0,97527.0,0.052309]
[1733831036901,0.01212828,97528.0,97527.0,0.052309]
[1733831037494,0.01212828,97528.0,97527.0,0.097162]
[1733831040814,0.01212828,97528.0,97527.0,0.28099764]
[1733831041203,0.01212828,97528.0,97527.0,0.097162]
[1733831041607,0.01212828,97528.0,97527.0,0.052309]
[1733831043811,0.09187903,97546.0,97545.0,0.05124]
[1733831044013,0.09187903,97564.0,97545.0,0.76644474]
[1733831044201,0.09187903,97564.0,97563.0,0.412031]
[1733831044510,0.0326,97579.0,97563.0,0.412091]
[1733831044707,0.0326,97579.0,97574.0,0.00011546]